bitfinex/quotes_SOLUSD_20250108
["timestamp","ask_amount","ask_price","bid_price","bid_amount"]
[1736305871886,5.0,198.94,198.85,24.25008405]
[1736305872051,9.97479428,198.95,198.89,24.25008405]
[1736305872244,4.97479428,198.94,198.9,0.57092978]
[1736305872593,0.12549,198.93,198.9,24.25008405]
[1736305872758,0.12549,198.93,198.88,24.25008405]
[1736305873080,5.10028428,198.94,198.89,0.57098225]
[1736305873375,5.0,198.91,198.85,0.5709558]
[1736305873586,0.12549,198.87,198.82,24.82146379]
[1736305873745,4.97479428,198.68,198.59,30.27]
[1736305873952,5.10028428,198.62,198.61,2.0746151]
[1736305874148,4.97479428,198.65,198.59,7.80412261]
[1736305874349,9.97479428,198.62,198.59,7.80412261]
[1736305874577,5.0,198.62,198.59,7.80412261]
[1736305874782,4.77737405,198.62,198.59,7.80412261]
[1736305874975,4.77737405,198.62,198.59,32.05420666]
[1736305875285,4.77737405,198.68,198.61,24.25008405]
[1736305875498,4.97479428,198.69,198.61,24.25008405]
[1736305875648,4.97479428,198.69,198.63,24.25008405]
[1736305875847,9.75216833,198.71,198.63,24.25008405]
[1736305876053,9.75216833,198.71,198.55,27.7009]
[1736305876054,12.43218712,198.7,198.58,20.0]
[1736305876264,12.62960735,198.71,198.64,24.25008405]
[1736305876446,12.62960735,198.71,198.66,24.25008405]
[1736305876447,7.65481307,198.71,198.66,24.25008405]
[1736305876668,7.65481307,198.71,198.68,24.25008405]
[1736305876847,7.65481307,198.73,198.68,24.25008405]
[1736305877178,0.12549,198.72,198.7,24.25008405]
[1736305877586,0.12549,198.72,198.61,36.364284]
[1736305877882,4.77737405,198.77,198.68,24.25008405]
[1736305878051,0.12549,198.77,198.7,24.25008405]
[1736305878488,0.12549,198.77,198.72,24.25008405]
[1736305878987,4.77737405,198.8,198.74,24.25008405]
[1736305879224,4.77737405,198.78,198.72,24.25008405]
[1736305879509,9.75216833,198.79,198.72,24.25008405]
[1736305879872,0.12549,198.78,198.72,24.25008405]
[1736305880570,4.77737405,198.81,198.74,24.25008405]
[1736305880768,4.77737405,198.82,198.74,24.25008405]
[1736305881282,4.90286405,198.82,198.74,24.25008405]
[1736305881475,0.12549,198.8,198.74,24.25008405]
[1736305881875,0.12549,198.8,198.76,24.25008405]
[1736305882080,13.07216833,198.85,198.76,24.25008405]
[1736305882389,0.12549,198.84,198.78,24.25008405]
[1736305882614,0.12549,198.84,198.81,24.25008405]
[1736305883091,4.77737405,198.89,198.82,24.25008405]
[1736305883296,3.32,198.91,198.86,24.25008405]
[1736305883516,4.77737405,198.92,198.88,24.25008405]
[1736305883727,3.32,198.97,198.88,24.25008405]
[1736305883728,4.77737405,198.94,198.88,24.25008405]
[1736305884010,4.90286405,198.92,198.85,24.25008405]
[1736305884206,9.75216833,198.91,198.85,24.25008405]
[1736305884502,4.77737405,198.93,198.88,24.25008405]
[1736305884712,4.77737405,198.95,198.89,24.25008405]
[1736305884913,4.77737405,198.95,198.91,24.25008405]
[1736305885279,4.90286405,198.94,198.89,24.25008405]
[1736305885499,4.90286405,198.94,198.88,24.25008405]
[1736305885698,4.77737405,198.96,198.9,24.25008405]
[1736305885898,4.77737405,198.97,198.92,24.25008405]
[1736305886125,9.75216833,198.97,198.92,24.25008405]
[1736305886291,0.12549,198.96,198.9,24.25008405]
[1736305886478,0.12549,198.96,198.93,24.25008405]
[1736305886690,4.97479428,199.0,198.95,24.25008405]
[1736305886886,4.77737405,199.01,198.98,24.25008405]
[1736305887192,9.75216833,199.03,198.98,24.25008405]
[1736305887400,4.97479428,199.03,198.98,24.25008405]
[1736305887731,0.12549,199.03,198.98,24.25008405]
[1736305888093,9.87765833,199.03,198.98,24.25008405]
[1736305888302,0.12549,199.01,198.97,24.25008405]
[1736305888692,3.32,199.08,198.91,12.5679]
[1736305888693,0.12549,198.98,198.91,24.25008405]
[1736305888895,5.10028428,198.96,198.89,24.25008405]
[1736305889116,0.12549,198.93,198.87,24.25008405]
[1736305889442,4.90286405,198.93,198.87,24.25008405]
[1736305889724,0.12549,198.91,198.85,24.25008405]
[1736305889923,4.90286405,198.91,198.85,24.25008405]
[1736305890135,9.75216833,198.94,198.85,24.25008405]
[1736305890299,4.97479428,198.95,198.89,24.25008405]
[1736305890500,9.75216833,198.94,198.89,24.25008405]
[1736305890699,0.12549,198.93,198.89,24.25008405]
[1736305891336,4.77737405,198.96,198.9,39.46985281]
[1736305891523,9.75216833,198.95,198.9,39.46985281]
[1736305891836,0.12549,198.94,198.9,39.46985281]
[1736305892214,5.10028428,198.95,198.9,39.46985281]
[1736305892617,0.12549,198.95,198.9,39.46985281]
[1736305892932,9.75216833,198.97,198.91,39.46985281]
[1736305893138,4.77737405,199.0,198.94,39.46985281]
[1736305893342,9.75216833,199.04,198.97,39.46985281]
[1736305893634,0.94195361,199.11,198.95,39.46985281]
[1736305893635,0.12549,198.98,198.95,39.46985281]
[1736305893797,0.12549,198.98,198.94,39.46985281]
[1736305894001,0.12549,198.98,198.96,39.46985281]
[1736305894226,0.12549,198.99,198.95,39.46985281]
[1736305894425,0.12549,198.99,198.96,39.46985281]
[1736305894662,0.12549,198.99,198.95,39.46985281]
[1736305894830,0.12549,198.99,198.96,38.46985281]
[1736305895031,0.12549,199.0,198.98,39.46985281]
[1736305895357,4.77737405,199.1,199.0,23.776884]
[1736305895553,4.97479428,199.11,199.06,39.46985281]
[1736305895554,4.77737405,199.11,199.06,39.46985281]
[1736305895850,4.97479428,199.08,199.05,39.46985281]
[1736305896028,4.77737405,199.11,199.06,39.46985281]
[1736305896224,4.97479428,199.19,199.1,59.46985281]
[1736305896439,4.77737405,199.25,199.18,39.46985281]
[1736305896687,4.77737405,199.28,199.23,39.46985281]
[1736305896872,4.77737405,199.3,199.25,39.46985281]
[1736305897167,9.75216833,199.31,199.25,39.46985281]
[1736305897472,4.97479428,199.27,199.25,39.46985281]
[1736305897833,4.77737405,199.26,199.23,39.46985281]
[1736305898029,4.97479428,199.24,199.21,39.46985281]
[1736305898319,4.97479428,199.24,199.19,39.46985281]
[1736305898497,4.90286405,199.23,199.19,39.46985281]
[1736305898761,0.12549,199.2,199.19,39.46985281]
[1736305899247,4.77737405,199.21,199.19,39.46985281]
[1736305899248,0.12549,199.21,199.19,39.46985281]
[1736305899849,4.77737405,199.3,199.2,63.24673681]
[1736305900049,4.90286405,199.29,199.26,39.46985281]
[1736305900354,0.12549,199.27,199.25,39.46985281]
[1736305900738,4.90286405,199.28,199.25,39.46985281]
[1736305900932,0.12549,199.28,199.26,39.46985281]
[1736305901137,4.77737405,199.3,199.26,39.46985281]
[1736305901329,0.12549,199.29,199.26,39.46985281]
[1736305901974,0.12549,199.27,199.24,39.46985281]
[1736305902279,4.90286405,199.25,199.21,39.46985281]
[1736305902486,0.12549,199.22,199.18,39.46985281]
[1736305902648,0.12549,199.22,199.01,12.28367923]
[1736305902649,0.12549,199.2,199.17,39.46985281]
[1736305903279,0.12549,199.18,199.17,39.46985281]
[1736305903586,0.12549,199.18,199.15,39.46985281]
[1736305903881,0.12549,199.16,199.13,39.46985281]
[1736305904889,4.77737405,199.2,199.15,39.46985281]
[1736305905065,0.12549,199.17,199.15,39.46985281]
[1736305905263,0.12549,199.17,199.13,39.46985281]
[1736305905586,0.12549,199.17,199.15,39.46985281]
[1736305905770,0.12549,199.18,199.15,39.46985281]
[1736305906176,0.12549,199.16,199.15,39.46985281]
[1736305906754,0.12549,199.15,199.13,39.46985281]
[1736305906979,4.90286405,199.13,199.09,39.46985281]
[1736305907182,4.97479428,199.16,199.0,42.88985281]
[1736305907183,0.12549,199.09,199.07,39.46985281]
[1736305908092,4.90286405,199.1,199.07,39.46985281]
[1736305908395,0.12549,199.1,199.07,39.46985281]
[1736305909055,4.77737405,199.15,199.09,39.46985281]
[1736305909389,3.42,199.22,199.09,39.46985281]
[1736305909390,0.12549,199.12,199.09,39.46985281]
[1736305909553,0.12549,199.12,199.08,39.46985281]
[1736305909754,0.12549,199.1,199.08,39.46985281]
[1736305910180,4.97479428,199.13,199.08,39.46985281]
[1736305910181,4.90286405,199.09,199.08,39.46985281]
[1736305910554,0.12549,199.09,199.08,39.46985281]
[1736305911067,0.12549,199.09,199.08,63.24673681]
[1736305911265,0.12549,199.09,199.08,39.46985281]
[1736305911965,0.12549,199.09,199.08,63.24673681]
[1736305912170,0.12549,199.09,199.08,39.46985281]
[1736305915594,0.12549,199.09,199.08,63.24673681]
[1736305916685,0.12549,199.09,199.08,39.46985281]
[1736305917988,0.12549,199.08,199.04,12.5601]
[1736305918224,0.12549,199.03,199.0,39.46985281]
[1736305918527,0.12549,198.96,198.94,39.46985281]
[1736305918821,4.77737405,198.96,198.92,39.46985281]
[1736305919027,4.97479428,198.97,198.94,39.46985281]
[1736305919392,9.75216833,199.0,198.96,39.46985281]
[1736305919593,0.12549,198.99,198.98,39.46985281]
[1736305920428,4.90286405,199.01,198.98,39.46985281]
[1736305920731,0.12549,199.01,199.0,39.46985281]
[1736305920932,4.77737405,199.04,199.0,39.46985281]
[1736305921103,9.75216833,199.06,199.03,39.46985281]
[1736305921291,4.77737405,199.07,199.05,39.46985281]
[1736305921490,4.77737405,199.07,199.06,39.46985281]
[1736305921723,0.12549,199.06,199.05,39.46985281]
[1736305921911,4.77737405,199.1,199.05,39.46985281]
[1736305922091,4.77737405,199.12,199.09,39.46985281]
[1736305922290,0.12549,199.13,199.11,39.46985281]
[1736305922588,9.75216833,199.13,199.11,39.46985281]
[1736305922795,0.12549,199.13,199.12,39.46985281]
[1736305923206,4.90286405,199.13,199.11,39.46985281]
[1736305923737,0.12549,199.13,199.12,39.46985281]
[1736305923894,11.0825,199.27,199.12,39.46985281]
[1736305923895,4.77737405,199.17,199.12,39.46985281]
[1736305924233,4.77737405,199.17,199.14,39.46985281]
[1736305924514,4.77737405,199.19,199.16,39.46985281]
[1736305924651,4.77737405,199.22,199.18,39.46985281]
[1736305924942,4.77737405,199.25,199.21,39.46985281]
[1736305925229,4.77737405,199.27,199.24,39.46985281]
[1736305925438,4.77737405,199.28,199.25,39.46985281]
[1736305925839,4.77737405,199.28,199.26,39.46985281]
[1736305926329,0.12549,199.28,199.26,39.46985281]
[1736305926543,4.90286405,199.28,199.26,39.46985281]
[1736305926917,4.77737405,199.28,199.26,39.46985281]
[1736305927234,0.12549,199.27,199.26,39.46985281]
[1736305927401,4.90286405,199.27,199.26,39.46985281]
[1736305927600,9.87765833,199.27,199.26,39.46985281]
[1736305927802,4.90286405,199.24,199.23,39.46985281]
[1736305928105,4.77737405,199.22,199.21,39.46985281]
[1736305928311,0.12549,199.21,199.2,39.46985281]
[1736305928606,0.12549,199.21,199.19,39.46985281]
[1736305928810,0.12549,199.19,199.18,39.46985281]
[1736305929717,4.90286405,199.19,199.18,39.46985281]
[1736305930433,0.12549,199.19,199.18,39.46985281]
[1736305930622,4.77737405,199.24,199.18,39.46985281]
[1736305930803,4.77737405,199.23,199.18,20.0]
[1736305931231,0.12549,199.22,199.18,20.0]
[1736305931872,4.90286405,199.19,199.18,39.46985281]
[1736305932469,0.12549,199.19,199.18,39.46985281]
[1736305932670,4.90286405,199.19,199.18,39.46985281]
[1736305932840,0.12549,199.19,199.18,39.46985281]
[1736305933237,4.90286405,199.19,199.18,39.46985281]
[1736305933447,5.94094708,199.31,199.07,25.1163]
[1736305933448,4.90286405,199.13,199.12,39.46985281]
[1736305933750,4.90286405,199.12,199.11,39.46985281]
[1736305933948,0.12549,199.11,199.1,39.46985281]
[1736305934561,4.77737405,199.16,199.13,20.0]
[1736305934864,4.77737405,199.18,199.15,39.46985281]
[1736305935065,4.77737405,199.19,199.17,39.46985281]
[1736305935264,4.77737405,199.2,199.17,39.46985281]
[1736305935449,4.77737405,199.2,199.15,12.5531]
[1736305935450,4.90286405,199.2,199.19,39.46985281]
[1736305935664,0.12549,199.2,199.19,39.46985281]
[1736305937294,4.90286405,199.2,199.19,39.46985281]
[1736305940570,0.12549,199.19,199.17,39.46985281]
[1736305940774,4.90286405,199.18,199.17,39.46985281]
[1736305941484,0.12549,199.17,199.14,39.46985281]
[1736305941819,0.12549,199.14,199.12,39.46985281]
[1736305941996,4.90286405,199.14,199.13,39.46985281]
[1736305942299,0.12549,199.14,199.13,39.46985281]
[1736305942486,4.77737405,199.2,199.13,39.46985281]
[1736305942800,4.77737405,199.21,199.19,39.46985281]
[1736305942998,0.12549,199.2,199.19,39.46985281]
[1736305943170,4.90286405,199.2,199.19,39.46985281]
[1736305943375,0.12549,199.22,199.19,39.46985281]
[1736305943677,0.12549,199.22,199.21,39.46985281]
[1736305943883,4.90286405,199.22,199.21,39.46985281]
[1736305944892,4.77737405,199.24,199.21,39.46985281]
[1736305945073,4.77737405,199.29,199.23,39.46985281]
[1736305945383,1.39367405,199.37,199.31,20.0]
[1736305945589,1.39367405,199.36,199.33,20.0]
[1736305945784,1.39367405,199.35,199.33,20.0]
[1736305946495,1.51916405,199.34,199.3,39.46985281]
[1736305946671,1.51916405,199.34,199.33,39.46985281]
[1736305946988,0.12549,199.35,199.33,39.46985281]
[1736305947493,1.39367405,199.37,199.33,39.46985281]
[1736305947793,0.12549,199.38,199.36,39.46985281]
[1736305948169,4.97479428,199.41,199.36,39.46985281]
[1736305948490,6.36846833,199.42,199.4,39.46985281]
[1736305948695,6.49395833,199.41,199.4,39.46985281]
[1736305950102,5.0,199.5,199.31,14.1774]
[1736305950103,6.49395833,199.39,199.38,39.46985281]
[1736305950398,6.49395833,199.39,199.24,9.84182595]
[1736305950399,6.49395833,199.35,199.32,39.46985281]
[1736305950572,5.10028428,199.33,199.32,39.46985281]
[1736305950777,6.49395833,199.33,199.32,39.46985281]
[1736305950993,5.10028428,199.31,199.3,39.46985281]
[1736305951201,6.36846833,199.31,199.3,39.46985281]
[1736305951497,6.49395833,199.29,199.28,39.46985281]
[1736305952382,6.49395833,199.28,199.27,39.46985281]
[1736305952596,6.36846833,199.27,199.26,39.46985281]
[1736305953099,6.49395833,199.27,199.26,39.46985281]
[1736305953474,5.94065004,199.37,199.25,39.46985281]
[1736305953475,6.49395833,199.26,199.25,39.46985281]
[1736305953674,0.94069764,199.35,199.18,6.4016]
[1736305953675,5.10028428,199.24,199.22,39.46985281]
[1736305953979,6.49395833,199.24,199.23,39.46985281]
[1736305954798,0.12549,199.24,199.23,39.46985281]
[1736305955593,1.51916405,199.24,199.23,39.46985281]
[1736305956079,0.12549,199.24,199.23,39.46985281]
[1736305956279,1.51916405,199.24,199.23,39.46985281]
[1736305956475,0.12549,199.24,199.23,39.46985281]
[1736305957498,1.51916405,199.24,199.23,39.46985281]
[1736305957700,6.49395833,199.24,199.23,39.46985281]
[1736305957985,5.10028428,199.23,199.22,39.46985281]
[1736305958197,5.10028428,199.22,199.21,39.46985281]
[1736305958402,6.49395833,199.22,199.21,39.46985281]
[1736305958778,5.10028428,199.21,199.2,39.46985281]
[1736305958980,6.49395833,199.21,199.2,39.46985281]
[1736305960401,5.10028428,199.21,199.2,39.46985281]
[1736305960581,1.51916405,199.21,199.2,39.46985281]
[1736305961107,1.39367405,199.24,199.2,78.93970562]
[1736305961307,1.39367405,199.24,199.23,39.46985281]
[1736305961829,6.49395833,199.24,199.23,39.46985281]
[1736305962007,0.12549,199.24,199.23,39.46985281]
[1736305962304,1.51916405,199.24,199.23,39.46985281]
[1736305963503,0.12549,199.24,199.23,39.46985281]
[1736305964278,0.12549,199.24,199.23,63.24673681]
[1736305964676,0.12549,199.28,199.26,20.0]
[1736305964905,0.12549,199.28,199.27,39.46985281]
[1736305965113,6.36846833,199.34,199.3,20.0]
[1736305965320,1.39367405,199.35,199.33,39.46985281]
[1736305965504,6.36846833,199.38,199.34,39.46985281]
[1736305965719,4.97479428,199.38,199.37,39.46985281]
[1736305966319,6.36846833,199.38,199.37,39.46985281]
[1736305966501,6.49395833,199.38,199.37,39.46985281]
[1736305966905,5.10028428,199.38,199.37,39.46985281]
[1736305967426,6.49395833,199.38,199.37,39.46985281]
[1736305967589,5.10028428,199.38,199.37,39.46985281]
[1736305968006,6.49395833,199.38,199.37,39.46985281]
[1736305968224,5.10028428,199.37,199.35,39.46985281]
[1736305968407,1.51916405,199.36,199.35,39.46985281]
[1736305968610,0.12549,199.33,199.3,59.46985281]
[1736305969134,0.12549,199.29,199.25,6.217]
[1736305969300,0.12549,199.27,199.25,6.217]
[1736305969690,0.12549,199.27,199.26,39.46985281]
[1736305969995,0.12549,199.28,199.26,39.46985281]
[1736305970194,0.12549,199.28,199.27,59.46985281]
[1736305970395,0.12549,199.28,199.27,83.24673681]
[1736305970699,4.97479428,199.33,199.27,83.24673681]
[1736305970915,0.12549,199.32,199.27,43.776884]
[1736305971109,1.51916405,199.29,199.28,20.0]
[1736305971294,0.12549,199.29,199.28,20.0]
[1736305972809,0.12549,199.29,199.28,59.46985281]
[1736305975227,0.12549,199.29,199.28,98.93970562]
[1736305975522,1.39367405,199.35,199.32,20.0]
[1736305975726,6.36846833,199.36,199.34,24.18358842]
[1736305975920,1.51916405,199.36,199.35,24.18358842]
[1736305976226,6.49395833,199.36,199.35,24.18358842]
[1736305977027,4.97479428,199.28,199.27,24.18358842]
[1736305977218,6.49395833,199.28,199.27,24.18358842]
[1736305977621,1.51916405,199.25,199.24,24.18358842]
[1736305977828,3.16,199.33,199.2,24.18358842]
[1736305977829,1.51916405,199.21,199.2,24.18358842]
[1736305978019,6.49395833,199.19,199.18,24.18358842]
[1736305978605,5.10028428,199.18,199.17,24.18358842]
[1736305978809,6.49395833,199.16,199.15,24.18358842]
[1736305979428,5.10028428,199.16,199.15,39.36501396]
[1736305979632,0.12549,199.16,199.15,39.36501396]
[1736305980906,0.12549,199.16,199.15,51.91831396]
[1736305981437,1.39367405,199.21,199.18,20.0]
[1736305981609,0.12549,199.21,199.2,39.36501396]
[1736305982329,1.39367405,199.27,199.23,20.0]
[1736305982532,1.39367405,199.27,199.26,39.36501396]
[1736305982714,6.36846833,199.28,199.26,39.36501396]
[1736305982918,6.49395833,199.26,199.25,39.36501396]
[1736305983517,5.10028428,199.25,199.24,39.36501396]
[1736305983836,6.49395833,199.25,199.24,39.36501396]
[1736305984335,6.49395833,199.25,199.12,3.60632595]
[1736305984336,6.49395833,199.23,199.17,12.5516]
[1736305984504,0.12549,199.19,199.12,3.16]
[1736305984709,1.51916405,199.19,199.14,20.0]
[1736305985098,0.12549,199.2,199.18,20.0]
[1736305985739,0.12549,199.22,199.19,39.36501396]
[1736305985919,0.12549,199.22,199.21,39.36501396]
[1736305986241,0.12549,199.24,199.21,39.36501396]
[1736305986414,0.12549,199.24,199.23,39.36501396]
[1736305986604,1.51916405,199.24,199.23,39.36501396]
[1736305987037,0.12549,199.24,199.23,39.36501396]
[1736305987536,1.51916405,199.24,199.23,39.36501396]
[1736305987840,0.12549,199.24,199.23,39.36501396]
[1736305988249,1.39367405,199.3,199.27,20.0]
[1736305988443,1.39367405,199.28,199.27,20.0]
[1736305988623,1.39367405,199.28,199.27,59.36501396]
[1736305989149,0.12549,199.28,199.27,59.36501396]
[1736305989858,0.12549,199.28,199.27,83.14189796]
[1736305990732,1.51916405,199.28,199.27,59.36501396]
[1736305990928,6.49395833,199.28,199.27,39.36501396]
[1736305991119,6.49395833,199.26,199.25,39.36501396]
[1736305991934,0.12549,199.25,199.22,39.36501396]
[1736305992134,5.10028428,199.23,199.22,39.36501396]
[1736305992336,6.49395833,199.23,199.22,39.36501396]
[1736305992947,0.12549,199.22,199.21,39.36501396]
[1736305993143,1.39367405,199.22,199.21,39.36501396]
[1736305993346,6.36846833,199.22,199.21,39.36501396]
[1736305993530,4.97479428,199.21,199.2,39.36501396]
[1736305993848,0.12549,199.21,199.2,39.36501396]
[1736305994046,6.49395833,199.21,199.2,39.36501396]
[1736305995129,0.12549,199.22,199.2,39.36501396]
[1736305995330,0.12549,199.22,199.2,78.73002792]
[1736305995832,0.12549,199.23,199.2,78.73002792]
[1736305996051,0.12549,199.23,199.22,39.36501396]
[1736305996249,1.39367405,199.25,199.22,39.36501396]
[1736305996436,1.39367405,199.28,199.26,20.0]
[1736305996629,1.39367405,199.28,199.27,39.36501396]
[1736305996833,6.36846833,199.28,199.27,39.36501396]
[1736305997051,1.39367405,199.3,199.27,39.36501396]
[1736305997251,0.12549,199.3,199.29,39.36501396]
[1736305997631,1.39367405,199.35,199.3,23.776884]
[1736305997831,6.36846833,199.36,199.34,39.36501396]
[1736305998166,1.39367405,199.36,199.35,39.36501396]
[1736305998343,1.51916405,199.36,199.35,39.36501396]
[1736305998550,6.49395833,199.36,199.35,39.36501396]
[1736306000168,5.10028428,199.36,199.35,39.36501396]
[1736306000666,1.51916405,199.36,199.35,39.36501396]
[1736306000959,6.49395833,199.36,199.35,39.36501396]
[1736306001342,6.49395833,199.36,199.35,24.17763993]
[1736306001835,6.49395833,199.34,199.33,24.17763993]
[1736306002040,6.49395833,199.33,199.32,24.17763993]
[1736306004060,6.36846833,199.35,199.32,24.17763993]
[1736306004241,6.36846833,199.38,199.34,44.17763993]
[1736306004447,6.36846833,199.38,199.37,24.17763993]
[1736306004669,6.49395833,199.38,199.37,24.17763993]
[1736306004971,0.12549,199.35,199.34,20.0]
[1736306005172,6.49395833,199.35,199.34,20.0]
[1736306005466,6.36846833,199.38,199.34,20.0]
[1736306005639,4.97479428,199.38,199.34,20.0]
[1736306006164,0.12549,199.37,199.34,20.0]
[1736306006358,0.12549,199.37,199.36,24.17763993]
[1736306006666,4.97479428,199.39,199.36,24.17763993]
[1736306006860,6.36846833,199.39,199.38,24.17763993]
[1736306007167,5.10028428,199.36,199.35,24.17763993]
[1736306007367,6.49395833,199.33,199.31,24.17763993]
[1736306007668,6.49395833,199.32,199.31,24.17763993]
[1736306009979,6.49395833,199.31,199.3,24.17763993]
[1736306010566,5.10028428,199.31,199.3,24.17763993]
[1736306011064,6.49395833,199.31,199.3,24.17763993]
[1736306011267,1.51916405,199.31,199.3,48.35527986]
[1736306011461,6.49395833,199.31,199.3,24.17763993]
[1736306012672,6.49395833,199.29,199.28,24.17763993]
[1736306012973,0.12549,199.27,199.24,23.776884]
[1736306013147,0.12549,199.27,199.26,44.17763993]
[1736306013354,6.49395833,199.27,199.26,44.17763993]
[1736306013663,0.12549,199.27,199.26,44.17763993]
[1736306013855,0.12549,199.28,199.26,44.17763993]
[1736306014049,0.12549,199.28,199.27,47.95452393]
[1736306014255,0.12549,199.28,199.27,24.17763993]
[1736306014456,6.36846833,199.3,199.29,20.0]
[1736306014974,6.49395833,199.3,199.29,44.17763993]
[1736306015147,5.10028428,199.3,199.29,44.17763993]
[1736306015341,6.49395833,199.3,199.29,44.17763993]
[1736306015847,5.10028428,199.3,199.29,44.17763993]
[1736306016150,6.49395833,199.3,199.29,44.17763993]
[1736306016352,0.12549,199.3,199.29,44.17763993]
[1736306016560,0.12549,199.3,199.29,56.72213993]
[1736306016763,0.12549,199.3,199.29,80.49902393]
[1736306018767,6.36846833,199.35,199.29,80.49902393]
[1736306019079,4.97479428,199.35,199.34,24.17763993]
[1736306019256,6.49395833,199.35,199.34,24.17763993]
[1736306020051,5.10028428,199.35,199.34,24.17763993]
[1736306020383,1.39367405,199.4,199.37,20.0]
[1736306020584,1.39367405,199.39,199.37,20.0]
[1736306020796,0.12549,199.38,199.37,20.0]
[1736306021576,0.12549,199.38,199.37,44.17763993]
[1736306021914,4.97479428,199.43,199.38,23.776884]
[1736306022054,1.39367405,199.4,199.37,32.5394]
[1736306022260,0.12549,199.4,199.39,24.17763993]
[1736306022552,0.12549,199.4,199.33,1.5383]
[1736306022553,0.12549,199.34,199.33,1.5383]
[1736306022763,6.36846833,199.37,199.33,1.5383]
[1736306022959,1.39367405,199.31,199.25,9.39010826]
[1736306023253,1.39367405,199.28,199.25,1.6211]
[1736306023480,1.39367405,199.27,199.25,1.6211]
[1736306023688,4.97479428,199.31,199.27,20.0]
[1736306023689,1.39367405,199.28,199.27,20.0]
[1736306023898,1.39367405,199.29,199.27,20.0]
[1736306024184,1.39367405,199.3,199.28,24.17763993]
[1736306024481,1.39367405,199.3,199.29,24.17763993]
[1736306024698,6.12846833,199.31,199.29,24.17763993]
[1736306024865,1.15367405,199.31,199.29,24.17763993]
[1736306025069,1.15367405,199.29,199.28,20.0]
[1736306025385,1.27916405,199.29,199.28,24.17763993]
[1736306026107,0.12549,199.29,199.28,24.17763993]
[1736306026879,1.27916405,199.29,199.28,24.17763993]
[1736306027095,0.12549,199.29,199.28,67.95452393]
[1736306027300,0.12549,199.29,199.28,47.95452393]
[1736306028280,0.12549,199.29,199.28,24.17763993]
[1736306028481,0.12549,199.29,199.28,44.17763993]
[1736306028681,1.15367405,199.3,199.28,60.49962393]
[1736306028895,1.27916405,199.3,199.29,24.17763993]
[1736306030680,6.25395833,199.3,199.29,24.17763993]
[1736306030999,1.27916405,199.3,199.29,24.17763993]
[1736306032804,6.12846833,199.34,199.32,20.0]
[1736306032989,1.15367405,199.34,199.33,24.17763993]
[1736306033182,1.27916405,199.34,199.33,24.17763993]
[1736306033407,6.25395833,199.34,199.33,24.17763993]
[1736306033579,1.27916405,199.33,199.32,24.17763993]
[1736306033779,6.25395833,199.33,199.32,24.17763993]
[1736306034508,6.25395833,199.33,199.32,44.17763993]
[1736306034720,1.15367405,199.34,199.32,44.17763993]
[1736306035019,6.25395833,199.34,199.33,24.17763993]
[1736306035517,6.25395833,199.33,199.32,24.17763993]
[1736306035682,6.25395833,199.33,199.32,44.17763993]
[1736306036193,6.25395833,199.33,199.32,20.0]
[1736306036504,6.25395833,199.33,199.32,44.17763993]
[1736306037210,1.27916405,199.32,199.31,24.17763993]
[1736306037415,6.25395833,199.28,199.27,24.17763993]
[1736306037716,5.10028428,199.27,199.26,24.17763993]
[1736306037880,6.25395833,199.27,199.26,24.17763993]
[1736306038684,0.12549,199.27,199.26,24.17763993]
[1736306038913,0.12549,199.27,199.26,47.95452393]
[1736306039100,6.12846833,199.33,199.3,20.0]
[1736306039317,1.15367405,199.34,199.32,24.17763993]
[1736306039621,6.12846833,199.35,199.34,20.0]
[1736306039915,1.27916405,199.35,199.34,44.17763993]
[1736306041016,1.15367405,199.39,199.38,20.0]
[1736306041219,4.97479428,199.4,199.38,44.17763993]
[1736306041389,6.12846833,199.42,199.41,20.0]
[1736306041581,4.97479428,199.42,199.41,44.17763993]
[1736306041781,6.12846833,199.43,199.41,44.17763993]
[1736306042010,6.12846833,199.43,199.41,67.95452393]
[1736306042190,6.12846833,199.42,199.41,44.17763993]
[1736306042382,1.15367405,199.44,199.41,44.17763993]
[1736306042591,6.12846833,199.44,199.43,44.17763993]
[1736306042808,1.27916405,199.44,199.43,44.17763993]
[1736306043392,6.25395833,199.44,199.43,44.17763993]
[1736306043719,7.92,199.55,199.35,25.0815]
[1736306043720,6.25395833,199.43,199.35,25.0815]
[1736306043883,0.12549,199.4,199.39,43.776884]
[1736306044715,1.27916405,199.4,199.39,44.17763993]
[1736306046211,6.25395833,199.4,199.38,24.17763993]
[1736306046533,6.25395833,199.37,199.35,24.17763993]
[1736306046700,1.27916405,199.32,199.31,24.17763993]
[1736306047019,1.27916405,199.31,199.3,24.17763993]
[1736306047224,1.27916405,199.31,199.28,24.17763993]
[1736306047225,1.27916405,199.3,199.28,24.17763993]
[1736306047526,5.10028428,199.28,199.27,24.17763993]